fUSD/lending_fUSD_20260602
["ID","MTS","AMOUNT","RATE_DAILY","PERIOD"]
[423751491,1780384238000,-63.34118593,0.00010721,2]
[423751482,1780384238000,-297.98091886,0.00010721,2]
[423751490,1780384238000,-475.95331607,0.00010721,2]
[423751488,1780384238000,-500.0,0.00010721,2]
[423751489,1780384238000,-24.04668393,0.00010721,2]
[423751492,1780384238000,-436.65881407,0.00010721,2]
[423751486,1780384238000,-302.01908114,0.00010721,2]
[423751484,1780384238000,-500.0,0.00010721,2]
[423751483,1780384238000,-500.0,0.00010721,2]
[423751480,1780384238000,-500.0,0.00010721,2]
[423751478,1780384238000,-500.0,0.00010721,2]
[423751487,1780384238000,-197.98091886,0.00010721,2]
[423752010,1780384253000,-203.33864922,0.00010721,2]
[423752001,1780384253000,-88.30501854,0.00010721,2]
[423752002,1780384253000,-500.0,0.00010721,2]
[423752004,1780384253000,-500.0,0.00010721,2]
[423752006,1780384253000,-312.67417785,0.00010721,2]
[423752003,1780384253000,-500.0,0.00010721,2]
[423752007,1780384253000,-98.63731016,0.00010721,2]
[423752005,1780384253000,-187.32582215,0.00010721,2]
[423752009,1780384253000,-296.66135078,0.00010721,2]
[423752008,1780384253000,-401.36268984,0.00010721,2]
[423752017,1780384253000,-1563.79555645,0.00013473,2]
[423752015,1780384253000,-249.79102696,0.00010721,2]
[423752011,1780384253000,-500.0,0.00010721,2]
[423752022,1780384253000,-150.0,0.00013488,2]
[423752019,1780384253000,-150.0,0.00013488,2]
[423752020,1780384253000,-150.0,0.00013488,2]
[423752021,1780384253000,-150.0,0.00013488,2]
[423752013,1780384253000,-66.76482141,0.00010721,2]
[423752012,1780384253000,-433.23517859,0.00010721,2]
[423752016,1780384253000,-778.84,0.00012757,2]
[423752014,1780384253000,-250.20897304,0.00010721,2]
[423752018,1780384253000,-464.02093921,0.00013473,2]
[423752048,1780384254000,-501.99483903,0.00013699,2]
[423752045,1780384254000,-501.99483903,0.00013699,2]
[423752051,1780384254000,-501.99483903,0.00013699,2]
[423752047,1780384254000,-501.99483903,0.00013699,2]
[423752044,1780384254000,-501.99483903,0.00013699,2]
[423752043,1780384254000,-501.99483903,0.00013699,2]
[423752049,1780384254000,-501.99483903,0.00013699,2]
[423752052,1780384254000,-501.99483903,0.00013699,2]
[423752053,1780384254000,-501.99483903,0.00013699,2]
[423752061,1780384254000,-501.99483903,0.00013699,2]
[423752058,1780384254000,-501.99483903,0.00013699,2]
[423752046,1780384254000,-501.99483903,0.00013699,2]
[423752062,1780384254000,-501.99483903,0.00013699,2]
[423752056,1780384254000,-501.99483903,0.00013699,2]
[423752054,1780384254000,-501.99483903,0.00013699,2]
[423752057,1780384254000,-501.99483903,0.00013699,2]
[423752050,1780384254000,-501.99483903,0.00013699,2]
[423752042,1780384254000,-501.99483903,0.00013699,2]
[423752034,1780384254000,-200.0,0.00013699,2]
[423752040,1780384254000,-501.99483903,0.00013699,2]
[423752055,1780384254000,-501.99483903,0.00013699,2]
[423752024,1780384254000,-2285.99761538,0.00013529,2]
[423752023,1780384254000,-150.0,0.00013488,2]
[423752026,1780384254000,-764.49197183,0.00013529,2]
[423752027,1780384254000,-1012.34787805,0.00013676,2]
[423752025,1780384254000,-1261.99999,0.00013529,2]
[423752028,1780384254000,-111.65212195,0.00013676,2]
[423752041,1780384254000,-501.99483903,0.00013699,2]
[423752031,1780384254000,-507.39193482,0.00013698,2]
[423752038,1780384254000,-501.99483903,0.00013699,2]
[423752036,1780384254000,-501.99483903,0.00013699,2]
[423752033,1780384254000,-921.97,0.00013698,2]
[423752030,1780384254000,-500.0,0.00013698,2]
[423752029,1780384254000,-500.0,0.00013698,2]
[423752039,1780384254000,-501.99483903,0.00013699,2]
[423752037,1780384254000,-501.99483903,0.00013699,2]
[423752032,1780384254000,-500.0,0.00013698,2]
[423752059,1780384254000,-501.99483903,0.00013699,2]
[423752035,1780384254000,-166.66,0.00013699,2]
[423752064,1780384254000,-501.99483903,0.00013699,2]
[423752098,1780384254000,-4312.48957721,0.00014077,2]
[423752086,1780384254000,-501.99483903,0.00013699,2]
[423752097,1780384254000,-166.66,0.00013973,2]
[423752087,1780384254000,-501.99483903,0.00013699,2]
[423752085,1780384254000,-501.99483903,0.00013699,2]
[423752096,1780384254000,-151.0,0.00013972,2]
[423752088,1780384254000,-932.0,0.0001371,2]
[423752080,1780384254000,-501.99483903,0.00013699,2]
[423752091,1780384254000,-4312.48957721,0.00013803,2]
[423752094,1780384254000,-643.77,0.00013968,2]
[423752092,1780384254000,-166.66,0.00013836,2]
[423752090,1780384254000,-3551.0,0.00013733,2]
[423752093,1780384254000,-196.75034628,0.00013899,2]
[423752099,1780384254000,-166.66,0.0001411,2]
[423752100,1780384254000,-4836.35674007,0.000142,2]
[423752060,1780384254000,-501.99483903,0.00013699,2]
[423752089,1780384254000,-1357.0,0.00013733,2]
[423752077,1780384254000,-501.99483903,0.00013699,2]
[423752095,1780384254000,-572.84,0.00013969,2]
[423752079,1780384254000,-501.99483903,0.00013699,2]
[423752078,1780384254000,-501.99483903,0.00013699,2]
[423752070,1780384254000,-501.99483903,0.00013699,2]
[423752063,1780384254000,-501.99483903,0.00013699,2]
[423752071,1780384254000,-501.99483903,0.00013699,2]
[423752072,1780384254000,-501.99483903,0.00013699,2]
[423752066,1780384254000,-501.99483903,0.00013699,2]
[423752067,1780384254000,-501.99483903,0.00013699,2]
[423752068,1780384254000,-501.99483903,0.00013699,2]
[423752065,1780384254000,-501.99483903,0.00013699,2]
[423752073,1780384254000,-501.99483903,0.00013699,2]
[423752075,1780384254000,-501.99483903,0.00013699,2]
[423752082,1780384254000,-501.99483903,0.00013699,2]
[423752084,1780384254000,-501.99483903,0.00013699,2]
[423752083,1780384254000,-501.99483903,0.00013699,2]
[423752081,1780384254000,-501.99483903,0.00013699,2]
[423752074,1780384254000,-501.99483903,0.00013699,2]
[423752069,1780384254000,-501.99483903,0.00013699,2]
[423752076,1780384254000,-501.99483903,0.00013699,2]
[423752136,1780384255000,-395.95,0.00014788,2]
[423752139,1780384255000,-575.1,0.00014788,2]
[423752137,1780384255000,-643.76,0.00014788,2]
[423752135,1780384255000,-481.99,0.00014788,2]
[423752131,1780384255000,-184.99,0.00014784,2]
[423752130,1780384255000,-572.84,0.00014784,2]
[423752128,1780384255000,-572.88,0.00014784,2]
[423752127,1780384255000,-325.42,0.00014784,2]
[423752141,1780384255000,-643.75,0.00014788,2]
[423752132,1780384255000,-2000.0,0.00014787,2]
[423752129,1780384255000,-395.95,0.00014784,2]
[423752138,1780384255000,-572.84,0.00014788,2]
[423752148,1780384255000,-572.84,0.00014791,2]
[423752140,1780384255000,-481.99,0.00014788,2]
[423752146,1780384255000,-481.99,0.00014791,2]
[423752143,1780384255000,-481.99,0.0001479,2]
[423752145,1780384255000,-572.84,0.00014791,2]
[423752144,1780384255000,-395.95,0.00014791,2]
[423752147,1780384255000,-572.84,0.00014791,2]
[423752149,1780384255000,-481.99,0.00014791,2]
[423752159,1780384255000,-575.04,0.00014795,2]
[423752152,1780384255000,-185.9,0.00014791,2]
[423752150,1780384255000,-575.1,0.00014791,2]
[423752124,1780384255000,-572.84,0.00014784,2]
[423752142,1780384255000,-184.98,0.0001479,2]
[423752134,1780384255000,-184.98,0.00014788,2]
[423752106,1780384255000,-280.27,0.000143,2]
[423752125,1780384255000,-395.95,0.00014784,2]
[423752109,1780384255000,-4312.48957721,0.00014352,2]
[423752101,1780384255000,-271.91,0.000142,2]
[423752105,1780384255000,-736.0,0.00014253,2]
[423752107,1780384255000,-2008.728,0.00014338,2]
[423752102,1780384255000,-823.0,0.00014238,2]
[423752104,1780384255000,-5477.032266,0.0001425,2]
[423752103,1780384255000,-166.66,0.00014247,2]
[423752151,1780384255000,-643.75,0.00014791,2]
[423752108,1780384255000,-188.214,0.00014338,2]
[423752112,1780384255000,-339.34,0.00014524,2]
[423752110,1780384255000,-166.66,0.00014384,2]
[423752133,1780384255000,-572.84,0.00014788,2]
[423752111,1780384255000,-509.01,0.00014503,2]
[423752113,1780384255000,-4312.48957721,0.00014626,2]
[423752117,1780384255000,-1199.156936,0.00014636,2]
[423752116,1780384255000,-679.578468,0.00014636,2]
[423752121,1780384255000,-395.95,0.00014783,2]
[423752114,1780384255000,-173.43,0.0001463,2]
[423752119,1780384255000,-8839.9939243,0.000147,2]
[423752120,1780384255000,-184.99,0.00014783,2]
[423752118,1780384255000,-1591.0,0.0001468,2]
[423752122,1780384255000,-395.95,0.00014784,2]
[423752123,1780384255000,-397.69,0.00014784,2]
[423752126,1780384255000,-575.1,0.00014784,2]
[423752115,1780384255000,-160.0,0.00014636,2]
[423752154,1780384255000,-481.99,0.00014794,2]
[423752160,1780384255000,-184.98,0.00014795,2]
[423752157,1780384255000,-572.84,0.00014795,2]
[423752189,1780384255000,-500.0,0.00014899,2]
[423752190,1780384255000,-7188.43639549,0.000149,3]
[423752192,1780384255000,-2619.54856437,0.000149,2]
[423752186,1780384255000,-500.0,0.00014808,2]
[423752188,1780384255000,-10000.0,0.0001485,2]
[423752193,1780384255000,-11114.99490393,0.000149,3]
[423752191,1780384255000,-7380.45143563,0.000149,2]
[423752194,1780384255000,-324.46684334,0.000149,2]
[423752195,1780384255000,-3988.02273387,0.000149,2]
[423752197,1780384255000,-428.89001045,0.000149,2]
[423752196,1780384255000,-2907.14203862,0.000149,2]
[423752198,1780384255000,-1663.96795093,0.000149,2]
[423752199,1780384255000,-1125.78172816,0.000149,3]
[423752200,1780384255000,-4213.97892906,0.000149,2]
[423752201,1780384255000,-383.28911804,0.000149,2]
[423752202,1780384255000,-10782.62840544,0.000149,2]
[423752204,1780384255000,-150.0,0.00014986,2]
[423752155,1780384255000,-481.99,0.00014794,2]
[423752207,1780384255000,-151.0,0.00014999,2]
[423752209,1780384255000,-500.0,0.00014999,2]
[423752205,1780384255000,-921.97,0.00014998,2]
[423752206,1780384255000,-151.0,0.00014999,2]
[423752208,1780384255000,-151.0,0.00014999,2]
[423752210,1780384255000,-500.0,0.00014999,2]
[423752211,1780384255000,-500.0,0.00014999,2]
[423752187,1780384255000,-200.0,0.00014808,2]
[423752180,1780384255000,-572.84,0.00014803,2]
[423752203,1780384255000,-20842.68040355,0.00014955,2]
[423752183,1780384255000,-151.0,0.00014805,2]
[423752184,1780384255000,-151.0,0.00014805,2]
[423752153,1780384255000,-500.0,0.00014793,2]
[423752158,1780384255000,-184.98,0.00014795,2]
[423752162,1780384255000,-572.84,0.00014795,2]
[423752173,1780384255000,-572.84,0.00014803,2]
[423752172,1780384255000,-643.75,0.00014803,2]
[423752161,1780384255000,-184.98,0.00014795,2]
[423752165,1780384255000,-572.84,0.00014803,2]
[423752166,1780384255000,-481.99,0.00014803,2]
[423752171,1780384255000,-395.95,0.00014803,2]
[423752167,1780384255000,-572.84,0.00014803,2]
[423752163,1780384255000,-1073.51749306,0.000148,2]
[423752156,1780384255000,-479.86,0.00014794,2]
[423752164,1780384255000,-544.06,0.00014802,2]
[423752169,1780384255000,-516.84,0.00014803,2]
[423752177,1780384255000,-575.13,0.00014803,2]
[423752182,1780384255000,-151.0,0.00014805,2]
[423752181,1780384255000,-481.99,0.00014803,2]
[423752179,1780384255000,-184.98,0.00014803,2]
[423752178,1780384255000,-395.95,0.00014803,2]
[423752174,1780384255000,-575.1,0.00014803,2]
[423752185,1780384255000,-184.98,0.00014805,2]
[423752175,1780384255000,-184.98,0.00014803,2]
[423752168,1780384255000,-481.99,0.00014803,2]
[423752170,1780384255000,-184.98,0.00014803,2]
[423752176,1780384255000,-575.1,0.00014803,2]
[423752245,1780384256000,-500.0,0.00014999,2]
[423752233,1780384256000,-500.0,0.00014999,2]
[423752236,1780384256000,-500.0,0.00014999,2]
[423752235,1780384256000,-500.0,0.00014999,2]
[423752246,1780384256000,-500.0,0.00014999,2]
[423752237,1780384256000,-500.0,0.00014999,2]
[423752243,1780384256000,-500.0,0.00014999,2]
[423752240,1780384256000,-500.0,0.00014999,2]
[423752242,1780384256000,-500.0,0.00014999,2]
[423752248,1780384256000,-500.0,0.00014999,2]
[423752241,1780384256000,-500.0,0.00014999,2]
[423752238,1780384256000,-500.0,0.00014999,2]
[423752247,1780384256000,-500.0,0.00014999,2]
[423752258,1780384256000,-500.0,0.00014999,2]
[423752249,1780384256000,-500.0,0.00014999,2]
[423752252,1780384256000,-500.0,0.00014999,2]
[423752259,1780384256000,-500.0,0.00014999,2]
[423752244,1780384256000,-500.0,0.00014999,2]
[423752239,1780384256000,-500.0,0.00014999,2]
[423752234,1780384256000,-500.0,0.00014999,2]
[423752219,1780384256000,-500.0,0.00014999,2]
[423752250,1780384256000,-500.0,0.00014999,2]
[423752221,1780384256000,-500.0,0.00014999,2]
[423752213,1780384256000,-500.0,0.00014999,2]
[423752212,1780384256000,-500.0,0.00014999,2]
[423752214,1780384256000,-500.0,0.00014999,2]
[423752216,1780384256000,-500.0,0.00014999,2]
[423752215,1780384256000,-500.0,0.00014999,2]
[423752218,1780384256000,-500.0,0.00014999,2]
[423752220,1780384256000,-500.0,0.00014999,2]
[423752231,1780384256000,-500.0,0.00014999,2]
[423752217,1780384256000,-500.0,0.00014999,2]
[423752223,1780384256000,-500.0,0.00014999,2]
[423752224,1780384256000,-500.0,0.00014999,2]
[423752225,1780384256000,-500.0,0.00014999,2]
[423752228,1780384256000,-500.0,0.00014999,2]
[423752227,1780384256000,-500.0,0.00014999,2]
[423752229,1780384256000,-500.0,0.00014999,2]
[423752226,1780384256000,-500.0,0.00014999,2]
[423752230,1780384256000,-500.0,0.00014999,2]
[423752222,1780384256000,-500.0,0.00014999,2]
[423752255,1780384256000,-500.0,0.00014999,2]
[423752232,1780384256000,-500.0,0.00014999,2]
[423752253,1780384256000,-500.0,0.00014999,2]
[423752281,1780384256000,-921.97,0.00014999,2]
[423752279,1780384256000,-921.97,0.00014999,2]
[423752280,1780384256000,-921.97,0.00014999,2]
[423752277,1780384256000,-921.97,0.00014999,2]
[423752275,1780384256000,-921.97,0.00014999,2]
[423752276,1780384256000,-921.97,0.00014999,2]
[423752282,1780384256000,-921.97,0.00014999,2]
[423752286,1780384256000,-921.97,0.00014999,2]
[423752283,1780384256000,-921.97,0.00014999,2]
[423752288,1780384256000,-921.97,0.00014999,2]
[423752296,1780384256000,-631.0,0.00015,5]
[423752297,1780384256000,-136765.01103142,0.00015,2]
[423752290,1780384256000,-921.97,0.00014999,2]
[423752293,1780384256000,-921.97,0.00014999,2]
[423752291,1780384256000,-921.97,0.00014999,2]
[423752295,1780384256000,-535.0,0.00015,5]
[423752292,1780384256000,-921.97,0.00014999,2]
[423752294,1780384256000,-921.99194654,0.00014999,2]
[423752289,1780384256000,-921.97,0.00014999,2]
[423752278,1780384256000,-921.97,0.00014999,2]
[423752287,1780384256000,-921.97,0.00014999,2]
[423752285,1780384256000,-921.97,0.00014999,2]
[423752273,1780384256000,-921.97,0.00014999,2]
[423752251,1780384256000,-500.0,0.00014999,2]
[423752256,1780384256000,-500.0,0.00014999,2]
[423752262,1780384256000,-500.0,0.00014999,2]
[423752260,1780384256000,-500.0,0.00014999,2]
[423752263,1780384256000,-500.0,0.00014999,2]
[423752264,1780384256000,-500.0,0.00014999,2]
[423752271,1780384256000,-500.0,0.00014999,2]
[423752261,1780384256000,-500.0,0.00014999,2]
[423752257,1780384256000,-500.0,0.00014999,2]
[423752272,1780384256000,-367.08155098,0.00014999,2]
[423752268,1780384256000,-500.0,0.00014999,2]
[423752274,1780384256000,-921.97,0.00014999,2]
[423752284,1780384256000,-921.97,0.00014999,2]
[423752270,1780384256000,-500.0,0.00014999,2]
[423752254,1780384256000,-500.0,0.00014999,2]
[423752267,1780384256000,-500.0,0.00014999,2]
[423752269,1780384256000,-500.0,0.00014999,2]
[423752265,1780384256000,-500.0,0.00014999,2]
[423752266,1780384256000,-500.0,0.00014999,2]
[423752298,1780384307000,-500.0,0.00011793,2]
[423752299,1780384598000,-184.36238681,0.0001062,2]
[423752300,1780384615000,-1200.0,0.0001062,2]
[423752302,1780384651000,-897.296918,0.00010621,2]
[423752303,1780384668000,-897.296918,0.00010621,2]
[423752304,1780384701000,-2319.0,0.00010621,2]
[423752305,1780384702000,-2319.0,0.00010621,2]
[423752306,1780384720000,-402.85328252,0.0001062,2]
[423752307,1780384736000,-500.0,0.0001062,2]
[423752309,1780384775000,-300.0,0.00010619,2]
[423752335,1780384827000,-1124.0,0.00010618,2]
[423752336,1780384843000,-76.0,0.00010618,2]
[423752345,1780384860000,-300.0,0.00010618,2]
[423752356,1780384895000,-516.13842104,0.00010617,2]
[423752368,1780384948000,-300.0,0.00010616,2]
[423752387,1780385002000,-279.27543213,0.00010616,2]
[423752401,1780385211000,-371.50073088,0.00010514,2]
[423752406,1780385328000,-300.0,0.00010513,2]
[423752408,1780385345000,-150.0,0.00010513,2]
[423752409,1780385383000,-281.99729776,0.00010513,2]
[423752410,1780385398000,-195.49280249,0.00010513,2]
[423752423,1780385435000,-300.0,0.00010512,2]
[423752836,1780385451000,2006.33851161,0.00010412,2]
[423752839,1780385452000,-62.74040219,0.00010512,2]
[423752841,1780385452000,-196.75034628,0.00010512,2]
[423752842,1780385452000,-162.78,0.00010513,2]
[423752838,1780385452000,-237.25959781,0.00010512,2]
[423752840,1780385452000,-150.0,0.00010512,2]
[423752843,1780385452000,-164.48382561,0.00010825,7]
[423752845,1780385452000,-2242.29218919,0.00011,2]
[423752855,1780385452000,-197.28596201,0.00011949,2]
[423752837,1780385452000,-1200.0,0.00010512,2]
[423752846,1780385452000,-6733.24817333,0.00011,2]
[423752844,1780385452000,-156.0,0.00011,2]
[423752853,1780385452000,-221.71042592,0.00011563,2]
[423752849,1780385452000,-300.0,0.00011557,2]
[423752851,1780385452000,-193.0,0.00011563,2]
[423752848,1780385452000,-420.0,0.00011557,2]
[423752852,1780385452000,-166.12346902,0.00011563,2]
[423752854,1780385452000,-158.75,0.00011943,2]
[423752850,1780385452000,-1680.0,0.00011563,2]
[423752847,1780385452000,-255.0,0.00011532,2]
[423752864,1780385453000,-2351.0,0.0001272,2]
[423752863,1780385453000,-587.0,0.00012706,2]
[423752862,1780385453000,-30477.02,0.00012649,2]
[423752861,1780385453000,-433.0,0.00012646,2]
[423752857,1780385453000,-1158.74596201,0.00011994,2]
[423752860,1780385453000,-1000.0,0.00012084,2]
[423752858,1780385453000,-60.06403799,0.00011994,2]
[423752856,1780385453000,-41.25403799,0.00011949,2]
[423752867,1780385453000,-150.0,0.00012917,2]
[423752859,1780385453000,-185.37,0.00012,2]
[423752865,1780385453000,-191.66,0.00012791,2]
[423752871,1780385453000,-150.0,0.00013488,2]
[423752868,1780385453000,-158.12,0.0001297,2]
[423752869,1780385453000,-186.18236868,0.00013,15]
[423752879,1780385453000,-26590.05418224,0.0001379,2]
[423752877,1780385453000,-200.0,0.00013699,2]
[423752875,1780385453000,-500.0,0.00013698,2]
[423752876,1780385453000,-166.66,0.00013699,2]
[423752878,1780385453000,-164.0,0.0001372,2]
[423752873,1780385453000,-158.12,0.00013653,2]
[423752872,1780385453000,-1218.81,0.00013493,2]
[423752870,1780385453000,-196.14,0.00013229,2]
[423752866,1780385453000,-1154.28,0.00012877,2]
[423752874,1780385453000,-1124.0,0.00013676,2]
[423752895,1780385454000,-249.69,0.00013973,2]
[423752889,1780385454000,-6069.0,0.00013863,2]
[423752888,1780385454000,-3640.0,0.00013863,2]
[423752887,1780385454000,-1226.0,0.00013863,2]
[423752893,1780385454000,-823.0,0.0001397,2]
[423752897,1780385454000,-481.99,0.00013983,2]
[423752885,1780385454000,-166.66,0.00013836,2]
[423752886,1780385454000,-525.0,0.00013863,2]
[423752881,1780385454000,-9259.58546887,0.0001379,2]
[423752884,1780385454000,-23080.28366813,0.0001379,2]
[423752882,1780385454000,-2041.44350403,0.0001379,2]
[423752883,1780385454000,-5655.88208598,0.0001379,2]
[423752880,1780385454000,-1211.96949075,0.0001379,2]
[423752896,1780385454000,-572.84,0.00013981,2]
[423752891,1780385454000,-196.14,0.0001389,2]
[423752901,1780385454000,-12097.29598902,0.00014,2]
[423752892,1780385454000,-643.75,0.00013968,2]
[423752910,1780385454000,-513.37605496,0.00013454,2]
[423752911,1780385454000,-2657.48187602,0.00014,2]
[423752909,1780385454000,-843.62394504,0.00013454,2]
[423752908,1780385454000,-311.90012763,0.00014,2]
[423752906,1780385454000,-41.27785899,0.00014,2]
[423752907,1780385454000,-319.47128769,0.00014,2]
[423752904,1780385454000,-576.53677951,0.00014,2]
[423752894,1780385454000,-166.66,0.00013973,2]
[423752902,1780385454000,-34822.56962612,0.00014,2]
[423752903,1780385454000,-1123.55601117,0.00014,2]
[423752900,1780385454000,-9221.66951959,0.00014,2]
[423752898,1780385454000,-3292.0,0.00013991,2]
[423752899,1780385454000,-250.0,0.00014,2]
[423752890,1780385454000,-736.0,0.00013876,2]
[423752905,1780385454000,-2642.24529066,0.00014,2]
[423752912,1780385582000,318.59,0.0001,11]
[423752925,1780385752000,-1200.0,0.00010509,2]
[423752927,1780385754000,-900.0,0.00010509,2]
[423752926,1780385754000,-300.0,0.00010509,2]
[423752928,1780385755000,204.05557396,0.00010409,2]
[423752929,1780385771000,7763.34596569,0.00010409,2]
[423752930,1780385789000,-300.0,0.00010509,2]
[423752931,1780385805000,-300.0,0.00010509,2]
[423752932,1780385842000,-300.0,0.00010509,2]
[423752933,1780385859000,-150.0,0.00010509,2]
[423752935,1780385896000,-220.62759139,0.00010509,2]
[423752937,1780385912000,-318.25409319,0.00010509,2]
[423752940,1780385950000,-500.0,0.00010508,2]
[423752941,1780386002000,-300.0,0.00010507,2]
[423752949,1780386044000,152.0,0.0001691,30]
[423752959,1780386130000,500.0,0.00010409,2]
[423752990,1780386534000,-152.0,0.00012035,7]
[423752991,1780386588000,-929.0,0.00012,2]
[423752992,1780386604000,-6201.52135705,0.00012,2]
[423753016,1780386636000,-6201.52135705,0.00012,2]
[423753018,1780386636000,-151.65919362,0.00012035,2]
[423753017,1780386636000,-196.75034628,0.00012,2]
[423753022,1780386636000,-222.77786523,0.00012199,2]
[423753021,1780386636000,-154.43931397,0.00012199,2]
[423753019,1780386636000,-200.0,0.00012067,2]
[423753024,1780386636000,-500.0,0.00012199,2]
[423753025,1780386636000,-500.0,0.00012199,2]
[423753020,1780386636000,-150.0,0.00012199,2]
[423753026,1780386636000,-500.0,0.00012199,2]
[423753028,1780386636000,-500.0,0.00012199,2]
[423753032,1780386636000,-500.0,0.00012199,2]
[423753033,1780386636000,-59.03566715,0.00012199,2]
[423753031,1780386636000,-500.0,0.00012199,2]
[423753027,1780386636000,-500.0,0.00012199,2]
[423753029,1780386636000,-500.0,0.00012199,2]
[423753030,1780386636000,-500.0,0.00012199,2]
[423753023,1780386636000,-566.8589708,0.00012199,2]
[423753111,1780386638000,-500.0,0.00012199,2]
[423753113,1780386638000,-500.0,0.00012199,2]
[423753101,1780386638000,-204.05557396,0.00011935,2]
[423753107,1780386638000,-500.0,0.00012199,2]
[423753105,1780386638000,-500.0,0.00012199,2]
[423753103,1780386638000,-440.96433285,0.00012199,2]
[423753109,1780386638000,-500.0,0.00012199,2]
[423753115,1780386638000,-500.0,0.00012199,2]
[423753121,1780386638000,-500.0,0.00012199,2]
[423753128,1780386638000,-500.0,0.00012199,2]
[423753124,1780386638000,-500.0,0.00012199,2]
[423753119,1780386638000,-500.0,0.00012199,2]
[423753142,1780386638000,-470.66655133,0.00012199,2]
[423753139,1780386638000,-500.0,0.00012199,2]
[423753137,1780386638000,-500.0,0.00012199,2]
[423753144,1780386638000,-500.0,0.00012199,2]
[423753133,1780386638000,-500.0,0.00012199,2]
[423753130,1780386638000,-500.0,0.00012199,2]
[423753126,1780386638000,-500.0,0.00012199,2]
[423753135,1780386638000,-500.0,0.00012199,2]
[423753211,1780386639000,-500.0,0.00012199,2]
[423753195,1780386639000,-500.0,0.00012199,2]
[423753205,1780386639000,-500.0,0.00012199,2]
[423753207,1780386639000,-500.0,0.00012199,2]
[423753209,1780386639000,-500.0,0.00012199,2]
[423753199,1780386639000,-500.0,0.00012199,2]
[423753201,1780386639000,-500.0,0.00012199,2]
[423753197,1780386639000,-500.0,0.00012199,2]
[423753217,1780386639000,-500.0,0.00012199,2]
[423753215,1780386639000,-500.0,0.00012199,2]
[423753213,1780386639000,-500.0,0.00012199,2]
[423753190,1780386639000,-500.0,0.00012199,2]
[423753219,1780386639000,-500.0,0.00012199,2]
[423753221,1780386639000,-500.0,0.00012199,2]
[423753232,1780386639000,-500.0,0.00012199,2]
[423753223,1780386639000,-500.0,0.00012199,2]
[423753227,1780386639000,-292.29513019,0.00012199,2]
[423753203,1780386639000,-500.0,0.00012199,2]
[423753188,1780386639000,-500.0,0.00012199,2]
[423753182,1780386639000,-500.0,0.00012199,2]
[423753186,1780386639000,-500.0,0.00012199,2]
[423753146,1780386639000,-516.13842104,0.00012199,2]
[423753149,1780386639000,-500.0,0.00012199,2]
[423753151,1780386639000,-500.0,0.00012199,2]
[423753153,1780386639000,-500.0,0.00012199,2]
[423753155,1780386639000,-500.0,0.00012199,2]
[423753158,1780386639000,-500.0,0.00012199,2]
[423753160,1780386639000,-500.0,0.00012199,2]
[423753162,1780386639000,-500.0,0.00012199,2]
[423753164,1780386639000,-500.0,0.00012199,2]
[423753167,1780386639000,-500.0,0.00012199,2]
[423753171,1780386639000,-500.0,0.00012199,2]
[423753173,1780386639000,-500.0,0.00012199,2]
[423753169,1780386639000,-500.0,0.00012199,2]
[423753175,1780386639000,-500.0,0.00012199,2]
[423753180,1780386639000,-500.0,0.00012199,2]